[Event "XI Closed IM BCC 2021"]
[Site "Barcelona"]
[Date "2021.03.17"]
[Round "3.1"]
[White "Louis, Thibault"]
[Black "Gonzalez, Raul Omar"]
[Result "1/2-1/2"]
[ECO "C00"]
[WhiteElo "2244"]
[BlackElo "2178"]
[Annotator "NA"]
[PlyCount "96"]
[EventDate "2021.03.15"]
[EventType "tourn"]
[EventCountry "ESP"]
[SourceTitle "playchess.com"]
[Source "ChessBase"]
[SourceQuality "1"]
[TimeControl "5400+30"]

1. e4 a6 2. d4 e6 3. Nf3 d5 4. exd5 exd5 5. Bd3 Nc6 6. O-O Nf6 7. c3 Be7 8. Re1 Bg4 9. Nbd2 O-O 10. Nf1 Bd6 11. Bg5 h6 12. Bh4 g5 13. Bg3 Ne7 14. h3 Bh5 15. Bxd6 Qxd6 16. Ng3 Bg6 17. Ne5 Rae8 18. Re3 h5 19. Qf3 h4 20. Nf5 Nxf5 21. Bxf5 Kg7 22. Rae1 Bh5 23. Bg4 Bg6 24. Nxg6 fxg6 25. Re6 Qd8 26. Rxe8 Rxe8 27. Rxe8 Qxe8 28. Qe2 Kf7 29. Qxe8+ Nxe8 30. Kf1 Nd6 31. Ke2 Kf6 32. Kd3 a5 33. b3 Ne4 34. Bf3 Nxf2+ 35. Ke3 Nh1 36. g4 Ng3 37. Bxd5 b6 38. c4 Ke7 39. Kf3 c5 40. dxc5 bxc5 41. Ke3 Kf6 42. Bb7 Ke5 43. Bg2 Kd6 44. Ba8 Nf1+ 45. Ke2 Ng3+ 46. Ke3 Ke5 47. Bg2 Kd6 48. Ba8 Ke5 1/2-1/2

[Event "XI Closed IM BCC 2021"]
[Site "Barcelona"]
[Date "2021.03.18"]
[Round "4.1"]
[White "Gonzalez, Raul Omar"]
[Black "Martin Barcelo, Carles"]
[Result "1-0"]
[ECO "A10"]
[WhiteElo "2178"]
[BlackElo "2258"]
[Annotator "RC"]
[PlyCount "89"]
[EventDate "2021.03.15"]
[EventType "tourn"]
[EventCountry "ESP"]
[SourceTitle "playchess.com"]
[Source "ChessBase"]
[SourceQuality "1"]
[TimeControl "5400+30"]

1. c4 g6 2. Nc3 Bg7 3. Nf3 Nf6 4. g3 O-O 5. Bg2 d6 6. O-O Nc6 7. d3 e5 8. Rb1 a5 9. a3 Re8 10. e4 Bg4 11. h3 Bxf3 12. Bxf3 Nd4 13. Bg2 Nd7 14. Be3 c6 15. Kh2 Nc5 16. Ne2 b5 17. cxb5 cxb5 18. f4 Nxe2 19. Qxe2 exf4 20. gxf4 Rc8 21. f5 d5 22. fxg6 hxg6 23. Rbc1 Be5+ 24. Kh1 d4 25. Bd2 Nb3 26. Rxc8 Qxc8 27. Bg5 Kg7 28. Qd1 Qe6 29. Qf3 f6 30. Bf4 Bxf4 31. Qxf4 Qe5 32. Qg4 Qd6 33. Rf5 Re5 34. Rf1 Rg5 35. e5 Rxg4 36. exd6 Rh4 37. Re1 Nc5 38. d7 Rh8 39. Re7+ Kh6 40. Re8 Nxd7 41. Rxh8+ Kg5 42. Rd8 Nc5 43. Rd5+ Kf4 44. Rxc5 Ke3 45. Rxb5 1-0

[Event "XI Closed IM BCC 2021"]
[Site "Barcelona"]
[Date "2021.03.19"]
[Round "5.1"]
[White "Valenzuela Gomez, Fernando"]
[Black "Gonzalez, Raul Omar"]
[Result "1-0"]
[ECO "C41"]
[WhiteElo "2393"]
[BlackElo "2178"]
[Annotator "NA"]
[PlyCount "68"]
[EventDate "2021.03.15"]
[EventType "tourn"]
[EventCountry "ESP"]
[SourceTitle "playchess.com"]
[Source "ChessBase"]
[SourceQuality "1"]
[TimeControl "5400+30"]

1. e4 e5 2. Nf3 d6 3. d4 f5 4. Bc4 exd4 5. exf5 d5 6. Bd3 c5 7. O-O Nf6 8. c4 dxc3 9. Nxc3 Be7 10. Ne5 O-O 11. Nxd5 Nxd5 12. Bc4 Rxf5 13. Bxd5+ Kf8 14. f4 Nc6 15. Be3 Nb4 16. Be4 Qxd1 17. Raxd1 Rh5 18. a3 Nc6 19. Rd5 Nxe5 20. Rxe5 Bg4 21. h3 Be2 22. Rf2 Bd1 23. Rd2 Rxe5 24. fxe5 Ba4 25. Bxh7 Kf7 26. Be4 Ke6 27. Bf4 Rf8 28. Bd5+ Kf5 29. Rf2 b6 30. g4+ Kg6 31. b3 Be8 32. Be4+ Kf7 33. Bg5+ Ke6 34. Bf5+ Kd5 1-0

[Event "XI Closed IM BCC 2021"]
[Site "Barcelona"]
[Date "2021.03.19"]
[Round "5.2"]
[White "Jimenez Ruano, Adrian"]
[Black "Louis, Thibault"]
[Result "0-1"]
[ECO "E34"]
[WhiteElo "2326"]
[BlackElo "2244"]
[Annotator "NA"]
[PlyCount "82"]
[EventDate "2021.03.15"]
[EventType "tourn"]
[EventCountry "ESP"]
[SourceTitle "playchess.com"]
[Source "ChessBase"]
[SourceQuality "1"]
[TimeControl "5400+30"]

1. d4 {[%emt 0:00:00]} Nf6 {[%emt 0:00:00]} 2. c4 {[%emt 0:00:00]} e6 {[%emt 0:00:07]} 3. Nc3 {[%emt 0:00:09]} Bb4 {[%emt 0:00:08]} 4. Qc2 {[%emt 0:00:13]} d5 {[%emt 0:00:44]} 5. cxd5 {[%emt 0:00:06]} Qxd5 {[%emt 0:03:22]} 6. e3 {[%emt 0:00:10]} c5 {[%emt 0:01:44]} 7. Bd2 {[%emt 0:00:05]} Bxc3 {[%emt 0:02:55]} 8. bxc3 {[%emt 0:00:02]} cxd4 {[%emt 0:01:22]} 9. exd4 {[%emt 0:06:31]} O-O {[%emt 0:01:23]} 10. Nf3 {[%emt 0:02:21]} Nc6 {[%emt 0:03:56]} 11. Rb1 {[%emt 0:17:45]} Qe4+ {[%emt 0:04:33]} 12. Qxe4 {[%emt 0:00:20]} Nxe4 {[%emt 0:00:04]} 13. Bb5 {[%emt 0:04:37]} Na5 {[%emt 0:01:05]} 14. Bd3 {[%emt 0:11:00]} Nd6 {[%emt 0:09:35]} 15. Bf4 {[%emt 0:17:10]} Rd8 {[%emt 0:00:33]} 16. Ke2 {[%emt 0:01:53]} b6 {[%emt 0:01:43]} 17. Rhc1 {[%emt 0:05:01]} Bb7 {[%emt 0:02:50]} 18. c4 {[%emt 0:06:52]} Nf5 {[%emt 0:03:21]} 19. d5 {[%emt 0:13:15]} Ba6 {[%emt 0:11:35]} 20. g4 {[%emt 0:02:24]} Nd6 {[%emt 0:03:19]} 21. dxe6 fxe6 {[%emt 0:02:15]} 22. Ne5 {[%emt 0:05:07]} Nf7 {[%emt 0:08:58]} 23. c5 {[%emt 0:01:36]} Rxd3 {[%emt 0:04:14]} 24. Nxd3 {[%emt 0:00:56]} e5 {[%emt 0:00:59]} 25. Ke3 {[%emt 0:01:48]} exf4+ {[%emt 0:01:18]} 26. Nxf4 {[%emt 0:00:17]} Nc4+ {[%emt 0:00:41]} 27. Kd4 {[%emt 0:00:43]} Nfe5 {[%emt 0:05:32]} 28. Ne6 {[%emt 0:02:16]} Re8 {[%emt 0:01:31]} 29. f4 {[%emt 0:01:21]} Nf3+ {[%emt 0:11:03]} 30. Kd5 {[%emt 0:00:08]} Nfd2 {[%emt 0:00:27]} 31. Rb4 {[%emt 0:00:39]} Bb7+ {[%emt 0:00:31]} 32. c6 {[%emt 0:00:17]} Bc8 {[%emt 0:01:57]} 33. c7 {[%emt 0:00:56]} Bb7+ {[%emt 0:04:43]} 34. Kd4 {[%emt 0:00:03]} Rxe6 {[%emt 0:00:14]} 35. Kd3 {[%emt 0:00:56]} Rc6 {[%emt 0:06:25]} 36. Re1 {[%emt 0:00:01]} Rxc7 {[%emt 0:00:13]} 37. Rb5 {[%emt 0:00:34]} Be4+ {[%emt 0:00:25]} 38. Ke2 {[%emt 0:00:13]} a6 {[%emt 0:00:32]} 39. Rh5 {[%emt 0:00:13]} Bf3+ 40. Kf2 Bxg4 {[%emt 0:01:57]} 41. Rg5 {[%emt 0:00:01]} Nf3 {[%emt 0:00:39]} 0-1

[Event "XI Closed IM BCC 2021"]
[Site "Barcelona"]
[Date "2021.03.19"]
[Round "5.3"]
[White "Fantinel, Thibault"]
[Black "Ayats Llobera, Gerard"]
[Result "1/2-1/2"]
[ECO "B40"]
[WhiteElo "2375"]
[BlackElo "2402"]
[Annotator "NA"]
[PlyCount "38"]
[EventDate "2021.03.15"]
[EventType "tourn"]
[EventCountry "ESP"]
[SourceTitle "playchess.com"]
[Source "ChessBase"]
[SourceQuality "1"]
[TimeControl "5400+30"]

1. e4 {[%emt 0:00:00]} c5 2. Nf3 {[%emt 0:00:05]} e6 {[%emt 0:00:31]} 3. g3 {[%emt 0:00:49]} Nc6 {[%emt 0:00:09]} 4. Bg2 {[%emt 0:00:05]} Nf6 {[%emt 0:00:02]} 5. Nc3 {[%emt 0:00:16]} Qc7 {[%emt 0:13:40]} 6. O-O {[%emt 0:02:09]} a6 {[%emt 0:01:05]} 7. Re1 {[%emt 0:05:01]} d6 {[%emt 0:06:40]} 8. d4 {[%emt 0:00:42]} cxd4 {[%emt 0:00:06]} 9. Nxd4 {[%emt 0:00:03]} Bd7 {[%emt 0:03:08]} 10. Nxc6 {[%emt 0:14:58]} Bxc6 {[%emt 0:04:57]} 11. Nd5 {[%emt 0:05:24]} Bxd5 {[%emt 0:00:06]} 12. exd5 {[%emt 0:00:03]} e5 {[%emt 0:00:01]} 13. c4 {[%emt 0:18:45]} Be7 {[%emt 0:07:22]} 14. Qa4+ {[%emt 0:02:38]} Nd7 {[%emt 0:03:01]} 15. Bh3 {[%emt 0:01:43]} Rd8 {[%emt 0:00:17]} 16. Be3 {[%emt 0:06:32]} O-O {[%emt 0:00:26]} 17. Bxd7 {[%emt 0:03:04]} Rxd7 {[%emt 0:00:22]} 18. Bb6 {[%emt 0:00:28]} Qc8 {[%emt 0:00:06]} 19. Rac1 {[%emt 0:02:33]} Bd8 {[%emt 0:31:12]} 1/2-1/2

[Event "XI Closed IM BCC 2021"]
[Site "Barcelona"]
[Date "2021.03.19"]
[Round "5.4"]
[White "Hernandez, Cristian Andres"]
[Black "Boukhris-Ferre, Yacine"]
[Result "1/2-1/2"]
[ECO "A48"]
[WhiteElo "2355"]
[BlackElo "2155"]
[Annotator "NA"]
[PlyCount "34"]
[EventDate "2021.03.15"]
[EventType "tourn"]
[EventCountry "ESP"]
[SourceTitle "playchess.com"]
[Source "ChessBase"]
[SourceQuality "1"]
[TimeControl "5400+30"]

1. d4 Nf6 2. Nf3 g6 3. Nbd2 d5 4. b4 Bg7 5. e3 O-O 6. c4 a5 7. b5 c5 8. bxc6 bxc6 9. Ba3 Na6 10. cxd5 cxd5 11. Bd3 Nb4 12. Bxb4 axb4 13. O-O Ba6 14. Ne5 Qd6 15. Bxa6 Rxa6 16. Qb3 Rb8 17. Rfc1 Raa8 1/2-1/2

[Event "XI Closed IM BCC 2021"]
[Site "Barcelona"]
[Date "2021.03.19"]
[Round "5.5"]
[White "Martin Barcelo, Carles"]
[Black "Martin Gonzalez, Angel"]
[Result "1-0"]
[ECO "B51"]
[WhiteElo "2258"]
[BlackElo "2272"]
[Annotator "NA"]
[PlyCount "91"]
[EventDate "2021.03.15"]
[EventType "tourn"]
[EventCountry "ESP"]
[SourceTitle "playchess.com"]
[Source "ChessBase"]
[SourceQuality "1"]
[TimeControl "5400+30"]

1. e4 {[%emt 0:07:38]} c5 {[%emt 0:00:00]} 2. Nf3 {[%emt 0:00:06]} d6 {[%emt 0:00:00]} 3. Bb5+ {[%emt 0:00:11]} Nd7 {[%emt 0:00:06]} 4. O-O {[%emt 0:01:22]} a6 {[%emt 0:00:12]} 5. Bd3 {[%emt 0:00:05]} Ngf6 {[%emt 0:00:14]} 6. Re1 {[%emt 0:00:05]} g6 {[%emt 0:01:15]} 7. c3 {[%emt 0:03:26]} Bg7 {[%emt 0:00:30]} 8. a4 {[%emt 0:01:11]} b6 {[%emt 0:05:58]} 9. Bc2 {[%emt 0:00:52]} Bb7 {[%emt 0:03:23]} 10. d4 {[%emt 0:00:38]} O-O {[%emt 0:01:53]} 11. h3 {[%emt 0:00:27]} Qc7 {[%emt 0:04:02]} 12. d5 {[%emt 0:01:14]} Rfe8 {[%emt 0:13:12]} 13. c4 {[%emt 0:02:43]} b5 {[%emt 0:11:27]} 14. axb5 {[%emt 0:01:46]} axb5 {[%emt 0:00:14]} 15. Rxa8 {[%emt 0:00:06]} Rxa8 {[%emt 0:00:08]} 16. cxb5 {[%emt 0:00:10]} Qa5 {[%emt 0:00:15]} 17. Na3 {[%emt 0:17:29]} Qb4 {[%emt 0:01:59]} 18. Re3 {[%emt 0:03:15]} Ne8 {[%emt 0:07:08]} 19. Rb3 {[%emt 0:05:17]} Qa4 {[%emt 0:08:51]} 20. b6 {[%emt 0:07:59]} c4 {[%emt 0:01:31]} 21. Rc3 {[%emt 0:08:23]} Qa6 {[%emt 0:01:28]} 22. Rxc4 {[%emt 0:01:53]} Qxb6 {[%emt 0:02:52]} 23. Qe1 {[%emt 0:08:35]} Ba6 {[%emt 0:08:52]} 24. Rb4 {[%emt 0:06:33]} Qc7 {[%emt 0:00:51]} 25. Ba4 {[%emt 0:06:44]} Nc5 {[%emt 0:01:19]} 26. Bc2 {[%emt 0:02:33]} Nf6 {[%emt 0:03:28]} 27. Nd4 {[%emt 0:05:07]} Bd3 {[%emt 0:04:34]} 28. Ndb5 {[%emt 0:04:29]} Qd7 29. Qe3 {[%emt 0:02:02]} Bxc2 {[%emt 0:08:15]} 30. Nxc2 {[%emt 0:00:05]} Ncxe4 {[%emt 0:00:06]} 31. Bd2 {[%emt 0:01:27]} Nc5 {[%emt 0:08:16]} 32. Nc3 {[%emt 0:00:06]} h5 {[%emt 0:01:02]} 33. Nd4 {[%emt 0:01:13]} Kh7 {[%emt 0:01:12]} 34. Nf3 {[%emt 0:00:15]} Kg8 {[%emt 0:00:37]} 35. Nd4 {[%emt 0:00:24]} Na6 {[%emt 0:00:38]} 36. Rb6 {[%emt 0:00:34]} Nc7 {[%emt 0:00:49]} 37. Qf3 {[%emt 0:00:43]} Nfxd5 {[%emt 0:00:45]} 38. Nxd5 {[%emt 0:00:27]} Bxd4 {[%emt 0:00:02]} 39. Rb7 {[%emt 0:00:20]} Rc8 {[%emt 0:01:01]} 40. Ba5 {[%emt 0:00:41]} e6 {[%emt 0:00:44]} 41. Nxc7 {[%emt 0:00:36]} d5 {[%emt 0:00:27]} 42. Nxd5 {[%emt 0:01:06]} Rc1+ {[%emt 0:00:50]} 43. Kh2 {[%emt 0:00:01]} Be5+ {[%emt 0:00:01]} 44. g3 {[%emt 0:00:31]} Qe8 {[%emt 0:00:51]} 45. Nf6+ {[%emt 0:00:21]} Bxf6 {[%emt 0:00:06]} 46. Qxf6 {[%emt 0:00:06]} 1-0

[Event "XI Closed IM BCC 2021"]
[Site "Barcelona"]
[Date "2021.03.20"]
[Round "6.1"]
[White "Raul Omar Gonzalez"]
[Black "Angel Martin Gonzalez"]
[Result "0-1"]
[ECO "A60"]
[WhiteElo "2178"]
[BlackElo "2272"]
[Annotator "NA"]
[PlyCount "56"]
[EventDate "2021.03.15"]
[EventType "tourn"]
[EventCountry "ESP"]
[SourceTitle "playchess.com"]
[Source "ChessBase"]
[SourceQuality "1"]
[TimeControl "5400+30"]

1. d4 Nf6 2. c4 c5 3. d5 e6 4. Nc3 exd5 5. cxd5 d6 6. Nf3 a6 7. a4 g6 8. Nd2 Nbd7 9. e4 Bg7 10. Be2 O-O 11. O-O Re8 12. Qc2 Rb8 13. Re1 Ne5 14. a5 g5 15. Nf1 h6 16. Ng3 b5 17. axb6 Qxb6 18. Ra3 c4 19. Nd1 Nfd7 20. Nf5 Bf8 21. Rg3 Nc5 22. Bh5 Bxf5 23. exf5 Nf3+ 24. gxf3 Rxe1+ 25. Kg2 Qb3 26. Qd2 Qxd1 27. Rxg5+ hxg5 28. Qxg5+ Bg7 0-1

[Event "XI Closed IM BCC 2021"]
[Site "Barcelona"]
[Date "2021.03.20"]
[Round "6.3"]
[White "Gerard Ayats Llobera"]
[Black "Cristian Andres Hernandez"]
[Result "1-0"]
[ECO "B94"]
[WhiteElo "2402"]
[BlackElo "2355"]
[Annotator "NA"]
[PlyCount "47"]
[EventDate "2021.03.15"]
[EventType "tourn"]
[EventCountry "ESP"]
[SourceTitle "playchess.com"]
[Source "ChessBase"]
[SourceQuality "1"]
[TimeControl "5400+30"]

1. e4 c5 {[%emt 0:07:15]} 2. Nf3 {[%emt 0:00:00]} d6 {[%emt 0:00:07]} 3. d4 {[%emt 0:00:00]} cxd4 {[%emt 0:00:04]} 4. Nxd4 {[%emt 0:00:00]} Nf6 {[%emt 0:00:09]} 5. Nc3 {[%emt 0:00:00]} a6 {[%emt 0:00:06]} 6. Bg5 {[%emt 0:00:00]} Nbd7 {[%emt 0:01:31]} 7. Bc4 {[%emt 0:00:00]} Qb6 {[%emt 0:00:23]} 8. Bb3 {[%emt 0:04:32]} e6 {[%emt 0:00:05]} 9. Qd2 {[%emt 0:00:16]} Be7 {[%emt 0:01:19]} 10. O-O-O {[%emt 0:00:13]} Nc5 {[%emt 0:00:05]} 11. Rhe1 {[%emt 0:00:22]} h6 {[%emt 0:00:05]} 12. Bh4 {[%emt 0:07:20]} O-O {[%emt 0:00:06]} 13. g3 {[%emt 0:16:26]} Qc7 {[%emt 0:00:07]} 14. f4 {[%emt 0:00:34]} Re8 {[%emt 0:00:15]} 15. e5 {[%emt 0:06:46]} dxe5 {[%emt 0:00:04]} 16. fxe5 {[%emt 0:01:34]} Nh7 {[%emt 0:00:34]} 17. Bxe7 {[%emt 0:02:38]} Rxe7 {[%emt 0:23:31]} 18. Nf5 {[%emt 0:11:55]} Rd7 {[%emt 0:00:05]} 19. Nd6 {[%emt 0:00:37]} b5 {[%emt 0:00:41]} 20. Nce4 {[%emt 0:02:22]} Nf8 {[%emt 0:06:13]} 21. Nf6+ {[%emt 0:08:00]} gxf6 {[%emt 0:25:35]} 22. Qxh6 {[%emt 0:01:29]} Nh7 {[%emt 0:09:35]} 23. Ne8 {[%emt 0:03:17]} Rxd1+ {[%emt 0:00:07]} 24. Rxd1 {[%emt 0:00:08]} 1-0

[Event "XI Closed IM BCC 2021"]
[Site "Barcelona"]
[Date "2021.03.21"]
[Round "7.1"]
[White "Jimenez Ruano, Adrian"]
[Black "Gonzalez, Raul Omar"]
[Result "1-0"]
[ECO "E00"]
[WhiteElo "2326"]
[BlackElo "2178"]
[Annotator "ChessBase"]
[PlyCount "85"]
[EventDate "2021.03.15"]
[EventType "tourn"]
[EventCountry "ESP"]
[SourceTitle "playchess.com"]
[Source "ChessBase"]
[SourceQuality "1"]
[TimeControl "5400+30"]

1. d4 e6 2. c4 Bb4+ 3. Nc3 f5 4. Qc2 Nf6 5. Nf3 O-O 6. g3 d6 7. Bg2 Nbd7 8. O-O Bxc3 9. Qxc3 Ne4 10. Qc2 Ndf6 11. Ne1 h6 12. Nd3 Qe8 13. b3 Bd7 14. Bb2 Bc6 15. f3 Ng5 16. Qc3 Rf7 17. b4 a6 18. Rae1 Re7 19. h4 Ngh7 20. e4 Qg6 21. exf5 Qxg3 22. d5 Bd7 23. fxe6 Be8 24. Qd4 Bg6 25. Qf4 Nh5 26. Qxg3 Nxg3 27. Nf4 Be8 28. Rf2 Nf5 29. h5 Ng3 30. Ng6 Bxg6 31. hxg6 Nf8 32. f4 Nxg6 33. f5 Ne5 34. Rxe5 dxe5 35. Bxe5 Nh5 36. c5 Nf6 37. d6 cxd6 38. cxd6 Ree8 39. Bxf6 gxf6 40. e7 Reb8 41. Bd5+ Kg7 42. Rg2+ Kh7 43. d7 1-0

[Event "XI Closed IM BCC 2021"]
[Site "Barcelona"]
[Date "2021.03.21"]
[Round "7.2"]
[White "Fantinel, Thibault"]
[Black "Valenzuela Gomez, Fernando"]
[Result "1/2-1/2"]
[ECO "B51"]
[WhiteElo "2375"]
[BlackElo "2393"]
[Annotator "ChessBase"]
[PlyCount "53"]
[EventDate "2021.03.15"]
[EventType "tourn"]
[EventCountry "ESP"]
[SourceTitle "playchess.com"]
[Source "ChessBase"]
[SourceQuality "1"]
[TimeControl "5400+30"]

1. e4 {[%emt 0:00:00]} c5 {[%emt 0:12:31]} 2. Nf3 {[%emt 0:00:29]} d6 {[%emt 0:00:30]} 3. Bb5+ {[%emt 0:00:12]} Nd7 {[%emt 0:00:05]} 4. a4 {[%emt 0:00:56]} Ngf6 {[%emt 0:00:25]} 5. Nc3 {[%emt 0:00:06]} g6 {[%emt 0:00:18]} 6. a5 {[%emt 0:00:26]} Bg7 {[%emt 0:00:22]} 7. O-O {[%emt 0:00:14]} a6 {[%emt 0:00:31]} 8. Bc4 {[%emt 0:00:16]} O-O {[%emt 0:01:09]} 9. Re1 {[%emt 0:00:08]} b5 {[%emt 0:02:31]} 10. axb6 {[%emt 0:01:23]} Nxb6 {[%emt 0:06:26]} 11. Ba2 {[%emt 0:06:20]} Bb7 {[%emt 0:04:48]} 12. d3 {[%emt 0:04:17]} Ne8 {[%emt 0:25:02]} 13. Be3 {[%emt 0:12:21]} e5 {[%emt 0:00:18]} 14. Nd2 {[%emt 0:00:24]} Kh8 {[%emt 0:01:04]} 15. f4 {[%emt 0:15:03]} exf4 {[%emt 0:01:07]} 16. Bxf4 {[%emt 0:00:06]} f5 {[%emt 0:06:02]} 17. exf5 Rxf5 {[%emt 0:00:57]} 18. Bg3 {[%emt 0:12:30]} d5 {[%emt 0:10:41]} 19. Nf3 {[%emt 0:01:06]} Rf8 {[%emt 0:04:55]} 20. Be5 {[%emt 0:13:51]} Nf6 {[%emt 0:02:53]} 21. d4 {[%emt 0:05:04]} c4 {[%emt 0:00:30]} 22. Qd2 {[%emt 0:00:34]} Qd7 {[%emt 0:01:26]} 23. Bxf6 {[%emt 0:11:56]} Bxf6 {[%emt 0:00:25]} 24. Ne5 {[%emt 0:00:03]} Qg7 {[%emt 0:00:34]} 25. Re2 {[%emt 0:02:02]} Rae8 {[%emt 0:00:37]} 26. Rae1 {[%emt 0:00:18]} Nd7 {[%emt 0:04:38]} 27. Nf3 {[%emt 0:00:47]} 1/2-1/2

[Event "XI Closed IM BCC 2021"]
[Site "Barcelona"]
[Date "2021.03.21"]
[Round "7.3"]
[White "Hernandez, Cristian Andres"]
[Black "Louis, Thibault"]
[Result "1/2-1/2"]
[ECO "A46"]
[WhiteElo "2355"]
[BlackElo "2244"]
[Annotator "ChessBase"]
[PlyCount "66"]
[EventDate "2021.03.15"]
[EventType "tourn"]
[EventCountry "ESP"]
[SourceTitle "playchess.com"]
[Source "ChessBase"]
[SourceQuality "1"]
[TimeControl "5400+30"]

1. d4 {[%emt 0:12:15]} Nf6 {[%emt 0:00:00]} 2. Nf3 {[%emt 0:00:11]} e6 {[%emt 0:00:00]} 3. Bf4 {[%emt 0:01:08]} b6 {[%emt 0:04:51]} 4. Nbd2 {[%emt 0:01:58]} Bb7 {[%emt 0:00:29]} 5. e3 {[%emt 0:00:17]} Be7 {[%emt 0:00:30]} 6. h3 {[%emt 0:02:16]} O-O {[%emt 0:00:57]} 7. Bd3 {[%emt 0:00:14]} c5 {[%emt 0:03:46]} 8. a4 {[%emt 0:00:22]} cxd4 {[%emt 0:03:36]} 9. exd4 {[%emt 0:00:05]} Nc6 {[%emt 0:00:29]} 10. c3 {[%emt 0:05:28]} d6 {[%emt 0:04:50]} 11. Nc4 {[%emt 0:00:11]} e5 {[%emt 0:08:39]} 12. dxe5 {[%emt 0:00:06]} dxe5 {[%emt 0:00:15]} 13. Ncxe5 {[%emt 0:04:16]} Nd5 {[%emt 0:07:50]} 14. Bh2 {[%emt 0:24:40]} Nxe5 {[%emt 0:05:04]} 15. Nxe5 {[%emt 0:00:03]} Bd6 {[%emt 0:00:25]} 16. O-O {[%emt 0:04:06]} Bxe5 {[%emt 0:16:54]} 17. Bxe5 {[%emt 0:00:07]} Qg5 {[%emt 0:00:15]} 18. Bg3 {[%emt 0:09:23]} Nf4 {[%emt 0:06:59]} 19. Bc4 {[%emt 0:09:12]} Bxg2 {[%emt 0:15:59]} 20. Re1 {[%emt 0:04:08]} Bb7 {[%emt 0:04:54]} 21. Qg4 {[%emt 0:00:34]} Qxg4 {[%emt 0:02:28]} 22. hxg4 {[%emt 0:00:05]} Nh3+ {[%emt 0:02:39]} 23. Kf1 {[%emt 0:04:13]} Bf3 {[%emt 0:03:35]} 24. a5 {[%emt 0:02:57]} Bxg4 {[%emt 0:02:40]} 25. Re7 {[%emt 0:00:29]} Ng5 {[%emt 0:00:43]} 26. Bf4 {[%emt 0:03:17]} Be6 {[%emt 0:02:00]} 27. Be2 {[%emt 0:01:34]} h6 {[%emt 0:00:16]} 28. Bxg5 {[%emt 0:00:22]} hxg5 {[%emt 0:00:06]} 29. Bf3 {[%emt 0:00:02]} Rad8 {[%emt 0:01:22]} 30. Rxa7 {[%emt 0:00:09]} bxa5 {[%emt 0:00:32]} 31. R1xa5 {[%emt 0:00:49]} Rd2 {[%emt 0:00:20]} 32. b4 {[%emt 0:03:24]} Rd3 {[%emt 0:00:23]} 33. Be2 {[%emt 0:00:44]} Rxc3 {[%emt 0:00:10]} 1/2-1/2

[Event "XI Closed IM BCC 2021"]
[Site "Barcelona"]
[Date "2021.03.21"]
[Round "7.5"]
[White "Martin Gonzalez, Angel"]
[Black "Boukhris-Ferre, Yacine"]
[Result "1-0"]
[ECO "C03"]
[WhiteElo "2272"]
[BlackElo "2155"]
[Annotator "ChessBase"]
[PlyCount "55"]
[EventDate "2021.03.15"]
[EventType "tourn"]
[EventCountry "ESP"]
[SourceTitle "playchess.com"]
[Source "ChessBase"]
[SourceQuality "1"]
[TimeControl "5400+30"]

1. e4 {[%emt 0:01:00]} e6 {[%emt 0:00:00]} 2. d4 {[%emt 0:00:11]} d5 {[%emt 0:00:00]} 3. Nd2 {[%emt 0:00:22]} Be7 {[%emt 0:00:00]} 4. Ngf3 {[%emt 0:00:09]} Nf6 {[%emt 0:04:32]} 5. Bd3 {[%emt 0:00:30]} c5 {[%emt 0:00:38]} 6. c3 {[%emt 0:00:09]} cxd4 {[%emt 0:01:49]} 7. cxd4 {[%emt 0:04:45]} dxe4 {[%emt 0:00:07]} 8. Nxe4 {[%emt 0:00:07]} Nc6 {[%emt 0:00:16]} 9. O-O {[%emt 0:00:11]} O-O {[%emt 0:01:18]} 10. Nc3 {[%emt 0:01:29]} b6 {[%emt 0:01:38]} 11. a3 {[%emt 0:01:00]} Bb7 {[%emt 0:00:13]} 12. Re1 {[%emt 0:00:09]} Rc8 {[%emt 0:05:53]} 13. Bc2 {[%emt 0:00:27]} Qd6 {[%emt 0:18:37]} 14. Qd3 {[%emt 0:04:05]} g6 {[%emt 0:07:01]} 15. Bg5 {[%emt 0:10:51]} Rfd8 {[%emt 0:05:55]} 16. Rad1 {[%emt 0:00:36]} Nd5 {[%emt 0:09:41]} 17. Ne4 {[%emt 0:04:29]} Qc7 {[%emt 0:01:25]} 18. Bb3 {[%emt 0:10:01]} Bxg5 {[%emt 0:10:30]} 19. Nexg5 {[%emt 0:15:30]} Na5 {[%emt 0:18:15]} 20. Ne5 {[%emt 0:06:02]} Nf4 {[%emt 0:02:41]} 21. Qg3 {[%emt 0:05:47]} Nxb3 {[%emt 0:09:02]} 22. Qxf4 {[%emt 0:00:20]} Rxd4 {[%emt 0:00:13]} 23. Rxd4 {[%emt 0:00:32]} Nxd4 {[%emt 0:00:03]} 24. Qxd4 {[%emt 0:00:54]} f6 {[%emt 0:00:08]} 25. Ng4 {[%emt 0:04:40]} fxg5 {[%emt 0:00:20]} 26. Nh6+ {[%emt 0:00:08]} Kf8 {[%emt 0:00:04]} 27. Qf6+ {[%emt 0:00:09]} Ke8 {[%emt 0:00:24]} 28. Qxe6+ {[%emt 0:00:10]} 1-0

[Event "XI Closed IM BCC 2021"]
[Site "Barcelona"]
[Date "2021.03.22"]
[Round "8.1"]
[White "Gonzalez, Raul Omar"]
[Black "Boukhris-Ferre, Yacine"]
[Result "0-1"]
[ECO "A16"]
[WhiteElo "2178"]
[BlackElo "2155"]
[Annotator "RC"]
[PlyCount "76"]
[EventDate "2021.03.15"]
[EventType "tourn"]
[EventCountry "ESP"]
[SourceTitle "playchess.com"]
[Source "ChessBase"]
[SourceQuality "1"]
[TimeControl "5400+30"]

1. c4 Nf6 2. Nc3 g6 3. g3 Bg7 4. Bg2 O-O 5. f4 c5 6. Nf3 Nc6 7. e4 d6 8. O-O Bg4 9. h3 Bxf3 10. Bxf3 Nd4 11. d3 Rb8 12. Be3 Ne8 13. g4 b5 14. cxb5 Nxb5 15. Bd2 Nec7 16. Rc1 Nd4 17. b3 Na6 18. Be1 e6 19. Bg2 Nb4 20. Rf2 Nb5 21. Nxb5 Rxb5 22. Kh1 Bd4 23. Re2 a5 24. Bg3 Rb6 25. Qd2 a4 26. bxa4 Nc6 27. e5 Qc7 28. exd6 Qxd6 29. Kh2 Rb2 30. Rc2 Rfb8 31. f5 Rxc2 32. Qxc2 Bg1+ 33. Kh1 Qxg3 34. Bxc6 Bd4 35. Bg2 Rb2 36. Qd1 Be5 37. Kg1 Qh2+ 38. Kf1 Bd4 0-1

[Event "XI Closed IM BCC 2021"]
[Site "Barcelona"]
[Date "2021.03.23"]
[Round "9.1"]
[White "Fantinel, Thibault"]
[Black "Gonzalez, Raul Omar"]
[Result "1-0"]
[ECO "C46"]
[WhiteElo "2375"]
[BlackElo "2178"]
[Annotator "ChessBase"]
[PlyCount "113"]
[EventDate "2021.03.15"]
[EventType "tourn"]
[EventCountry "ESP"]
[SourceTitle "playchess.com"]
[Source "ChessBase"]
[SourceQuality "1"]
[TimeControl "5400+30"]

1. e4 e5 2. Nf3 Nc6 3. Nc3 Bc5 4. Nxe5 Nxe5 5. d4 Bd6 6. dxe5 Bxe5 7. Qf3 Nf6 8. Bf4 Qe7 9. Bxe5 Qxe5 10. Qg3 Qxg3 11. hxg3 d6 12. Nb5 Kd8 13. f3 Bd7 14. g4 Bxb5 15. Bxb5 g5 16. O-O-O Ke7 17. Rhe1 Nd7 18. Bxd7 Kxd7 19. Rh1 Rae8 20. Rh5 f6 21. Rh6 Ke6 22. Rdh1 Re7 23. Kd2 Ke5 24. Ke3 d5 25. exd5 Kxd5+ 26. Kd3 Rd8 27. b3 Rdd7 28. Kc3 Rf7 29. Re1 c5 30. a4 b6 31. Re8 Kc6 32. Rh1 Rfe7 33. Re1 Rxe1 34. Rxe1 a6 35. Re8 b5 36. Rc8+ Kd5 37. Kd3 Rd6 38. c4+ bxc4+ 39. bxc4+ Ke5+ 40. Ke3 Re6 41. Rxc5+ Kd6+ 42. Kd4 Re2 43. Ra5 Rd2+ 44. Kc3 Rxg2 45. Rxa6+ Ke5 46. Ra5+ Ke6 47. Rd5 Rg3 48. Rd3 f5 49. gxf5+ Kxf5 50. a5 h5 51. a6 Rg1 52. Kb4 Rb1+ 53. Rb3 Re1 54. a7 Re8 55. Kc5 h4 56. Rb8 Re5+ 57. Kb4 1-0